bitfinex-derivatives/quotes_ETHF0:USTF0_20241207
["timestamp","ask_amount","ask_price","bid_price","bid_amount"]
[1733591303502,0.3952,3996.0,3995.9,0.175]
[1733591304601,0.5702,3996.0,3995.9,0.175]
[1733591305002,0.3952,3996.0,3995.9,0.175]
[1733591307403,0.5702,3996.0,3995.9,0.175]
[1733591308008,0.5702,3996.0,3995.8,0.17501]
[1733591308009,0.17501,3995.9,3995.8,0.17501]
[1733591308206,4.09883337,3995.9,3995.8,0.17501]
[1733591308407,0.17501,3995.9,3995.8,0.17501]
[1733591309707,0.57021,3996.0,3995.9,0.17501]
[1733591312606,0.3952,3996.0,3995.9,0.17501]
[1733591312907,0.5702,3996.0,3995.9,0.17501]
[1733591315407,0.3952,3996.0,3995.6,3.2078]
[1733591315612,0.3952,3996.0,3995.7,0.17501]
[1733591315613,0.17502,3995.8,3995.7,0.17501]
[1733591315814,0.90032162,3995.9,3995.8,0.17501]
[1733591316015,5.80683446,3995.9,3995.8,0.17501]
[1733591316310,5.47672284,3996.0,3995.9,0.17501]
[1733591316506,0.5702,3996.0,3995.9,0.17501]
[1733591317709,0.60449706,3996.0,3995.9,0.17501]
[1733591318607,0.60449706,3996.0,3995.8,0.17501]
[1733591318608,0.17501,3995.9,3995.8,0.17501]
[1733591318809,5.07832229,3995.9,3995.8,0.17501]
[1733591319310,5.07832229,3995.9,3995.5,0.3803]
[1733591319311,5.80363391,3995.9,3995.5,0.3803]
[1733591319512,0.17502,3995.7,3995.6,0.17501]
[1733591319707,0.20931706,3995.7,3995.6,0.17501]
[1733591320312,4.13176409,3995.7,3995.6,0.17501]
[1733591321107,4.13158585,3995.7,3995.6,0.17501]
[1733591321313,4.1314868,3995.7,3995.6,0.17501]
[1733591321718,0.20931706,3995.7,3995.6,0.17501]
[1733591322123,4.13140627,3995.7,3995.6,0.17501]
[1733591322316,4.13127983,3995.7,3995.6,0.17501]
[1733591322715,4.13126585,3995.7,3995.6,0.17501]
[1733591322917,0.20931706,3995.7,3995.6,0.17501]
[1733591324111,0.17503,3995.6,3995.5,0.17502]
[1733591324424,0.17503,3995.6,3995.2,3.2078]
[1733591324425,1.31192162,3995.6,3995.2,7.12792992]
[1733591324615,0.90032162,3995.3,3995.1,4.50986992]
[1733591324918,0.60343706,3995.2,3995.1,0.17504]
[1733591325711,0.42839706,3995.2,3994.8,4.29492992]
[1733591325913,0.90032162,3995.0,3994.9,0.17505]
[1733591326119,0.17506,3994.9,3994.8,0.17505]
[1733591326516,0.55616,3994.9,3994.8,0.17505]
[1733591326716,0.59045706,3994.9,3994.8,0.17505]
[1733591326925,0.62471164,3994.9,3994.8,0.17505]
[1733591327927,0.44965164,3994.9,3994.8,0.17505]
[1733591328126,0.06855164,3994.9,3994.8,0.17505]
[1733591329446,0.06855164,3994.9,3994.8,4.09517992]
[1733591329650,0.06855164,3994.9,3994.8,9.91359239]
[1733591330041,3.2078,3995.8,3994.8,9.73854239]
[1733591330240,4.2162047,3995.9,3995.8,0.17501]
[1733591331045,3.31588308,3995.9,3995.8,0.17501]
[1733591331253,2.94128308,3995.9,3995.8,0.17501]
[1733591335256,1.27442162,3996.0,3995.9,0.17501]
[1733591336944,0.17501,3995.9,3995.8,0.17501]
[1733591337147,0.90032162,3995.7,3995.6,0.17502]
[1733591337526,0.90032162,3995.7,3995.4,3.92012992]
[1733591337734,0.90032162,3995.7,3995.6,0.17502]
[1733591337934,1.39394028,3995.7,3995.6,0.17502]
[1733591338330,4.33522336,3995.7,3995.6,0.17502]
[1733591339035,1.39394028,3995.7,3995.6,0.17502]
[1733591339433,1.39394028,3995.7,3995.5,0.17502]
[1733591339434,0.17502,3995.6,3995.5,0.17502]
[1733591339636,6.37777445,3995.6,3995.5,0.17502]
[1733591340232,0.17503,3995.4,3995.0,0.4032]
[1733591340437,0.90032162,3995.1,3995.0,0.17505]
[1733591345136,1.07536162,3995.1,3995.0,0.17505]
[1733591345540,0.90032162,3995.1,3995.0,0.17505]
[1733591346141,0.3885,3995.5,3994.9,3.92012992]
[1733591346344,1.28882162,3995.5,3995.4,0.17503]
[1733591349447,0.17503,3995.4,3995.3,0.17503]
[1733591349645,1.07535162,3995.4,3995.3,0.17503]
[1733591349844,0.90032162,3995.4,3995.3,0.17503]
[1733591351748,1.30682162,3995.4,3995.3,0.17503]
[1733591352248,0.4065,3995.4,3995.3,0.17503]
[1733591352648,0.4065,3995.4,3995.3,0.56693]
[1733591353447,0.3852,3995.8,3995.7,0.17502]
[1733591353651,3.3828,3996.2,3995.7,0.17502]
[1733591353652,6.53600433,3996.2,3996.1,0.175]
[1733591353839,3.9802,3996.2,3996.1,0.175]
[1733591354549,3.9802,3996.2,3995.8,0.3919]
[1733591354749,4.82266463,3995.9,3995.3,3.9737]
[1733591354943,4.82266463,3995.9,3995.4,0.3919]
[1733591354944,3.8420563,3995.6,3995.4,0.3919]
[1733591355250,2.94173468,3995.5,3995.0,1.908]
[1733591355445,2.94125996,3995.2,3995.1,0.17504]
[1733591355757,3.92234301,3995.3,3995.2,0.17504]
[1733591356247,3.92221635,3995.3,3995.1,0.17504]
[1733591356452,3.92221635,3995.3,3995.0,2.2881]
[1733591356760,3.92221635,3995.2,3995.1,0.17504]
[1733591356947,4.82253797,3995.2,3995.1,0.17504]
[1733591357149,0.90032162,3995.2,3995.1,0.17504]
[1733591358753,5.80325039,3995.2,3995.1,0.17504]
[1733591359253,0.90032162,3995.2,3995.1,0.17504]
[1733591359660,4.82121758,3995.2,3995.1,0.17504]
[1733591360054,0.90032162,3995.2,3995.1,0.17504]
[1733591360648,4.90292877,3995.4,3994.7,0.81775]
[1733591360852,4.90292877,3995.4,3995.3,0.17503]
[1733591361251,1.71032162,3995.5,3995.4,0.17503]
[1733591362755,1.88535162,3995.5,3995.4,0.17503]
[1733591362947,1.71032162,3995.5,3995.4,0.17503]
[1733591368061,1.88535162,3995.5,3995.4,0.17503]
[1733591368556,4.65111641,3995.5,3995.4,0.17503]
[1733591368762,1.71032162,3995.5,3995.4,0.17503]
[1733591369160,7.59447741,3995.5,3995.4,0.17503]
[1733591369455,1.71032162,3995.5,3995.4,0.17503]
[1733591369663,7.5959993,3995.5,3995.4,0.17503]
[1733591369863,1.71032162,3995.5,3995.4,0.17503]
[1733591371063,7.59613566,3995.5,3995.4,0.17503]
[1733591371361,1.71032162,3995.5,3995.4,0.17503]
[1733591371557,7.59629533,3995.5,3995.4,0.17503]
[1733591371753,2.11152162,3995.5,3995.4,0.17503]
[1733591371956,2.28655162,3995.5,3995.4,0.17503]
[1733591372761,2.11152162,3995.5,3995.4,0.17503]
[1733591373560,2.28655162,3995.5,3995.4,0.17503]
[1733591373760,2.11152162,3995.5,3995.4,0.17503]
[1733591373955,2.11152162,3995.5,3994.9,3.2078]
[1733591374264,0.17504,3995.4,3995.3,0.17503]
[1733591374462,7.05835062,3995.4,3995.3,0.17503]
[1733591374969,0.17504,3995.2,3995.1,0.17504]
[1733591375267,3.38284,3995.2,3995.1,0.17504]
[1733591376067,4.10812162,3995.2,3994.5,0.8076]
[1733591376363,2.94292588,3995.0,3994.5,4.72772992]
[1733591376661,0.17506,3994.8,3994.7,0.17506]
[1733591377167,4.10952588,3994.9,3994.5,0.3962]
[1733591377471,0.17506,3994.8,3994.7,0.17506]
[1733591378155,6.32578588,3994.8,3994.7,0.17506]
[1733591378358,6.32578588,3994.8,3994.2,4.74543992]
[1733591378359,0.17507,3994.6,3994.5,0.17507]
[1733591379762,0.17507,3994.6,3994.4,0.17507]
[1733591379763,0.17508,3994.5,3994.4,0.17507]
[1733591379961,1.07540162,3994.5,3994.4,0.17507]
[1733591380959,0.90032162,3994.5,3994.4,0.17507]
[1733591386466,0.90032162,3994.5,3994.2,4.30772992]
[1733591386668,0.3852,3994.4,3994.3,0.17508]
[1733591386869,0.3852,3994.4,3994.3,4.09520992]
[1733591387469,0.56027,3994.4,3994.3,4.09520992]
[1733591387974,0.56027,3994.4,3994.3,0.17508]
[1733591388276,0.3852,3994.4,3994.2,4.30772992]
[1733591388477,0.56718,3994.3,3994.2,4.09520992]
[1733591388672,0.7921,3994.3,3994.2,4.09520992]
[1733591388866,0.96718,3994.3,3994.2,4.09520992]
[1733591389574,0.96718,3994.3,3994.2,0.17508]
[1733591391572,0.7921,3994.3,3993.8,0.3793]
[1733591391767,3.84108437,3993.9,3993.8,0.5544]
[1733591392664,3.853452,3993.9,3993.8,0.5544]
[1733591395073,0.91268925,3993.9,3993.8,0.5544]
[1733591395782,0.01236763,3993.9,3993.8,3.7622]
[1733591398283,0.01236763,3993.9,3993.8,14.81861629]
[1733591398891,0.01236763,3993.9,3993.8,8.92181349]
[1733591399189,0.01236763,3993.9,3993.8,14.81861629]
[1733591399393,0.01236763,3993.9,3993.8,8.92181349]
[1733591399693,0.01236763,3993.9,3993.8,29.00369411]
[1733591399891,0.01236763,3993.9,3993.8,21.14870177]
[1733591400787,0.01236763,3993.9,3993.8,29.00521179]
[1733591401189,0.01236763,3993.9,3993.8,21.14870177]
[1733591401593,0.01236763,3993.9,3993.8,29.00663387]
[1733591401790,0.01236763,3993.9,3993.8,21.14870177]
[1733591402493,0.01236763,3993.9,3993.8,29.00721071]
[1733591402694,0.01236763,3993.9,3993.8,16.78032243]
[1733591403800,0.01236763,3993.9,3993.8,27.10437034]
[1733591404098,0.01236763,3993.9,3993.8,27.10434331]
[1733591405393,0.01236763,3993.9,3993.8,19.24583437]
[1733591405894,0.01236763,3993.9,3993.8,21.15670211]
[1733591406502,0.01236763,3993.9,3993.8,18.69166935]
[1733591407096,1.65012162,3994.7,3994.6,0.17507]
[1733591408003,0.90032162,3995.6,3994.6,6.06252091]
[1733591408202,0.3957,3995.4,3995.3,0.17503]
[1733591408403,0.3823,3995.5,3995.4,0.17503]
[1733591408704,3.84108437,3996.0,3995.3,0.43758]
[1733591408892,2.94076275,3996.0,3995.9,0.17501]
[1733591409094,1.69352162,3996.1,3996.0,0.175]
[1733591409290,1.29602162,3996.1,3996.0,0.175]
[1733591412102,1.29602162,3996.1,3995.4,3.92936403]
[1733591412300,1.29602162,3996.1,3995.4,0.17503]
[1733591412301,0.90032162,3995.5,3995.4,0.17503]
[1733591412492,0.90032162,3995.5,3995.0,7.13716403]
[1733591412698,0.90032162,3995.2,3995.1,0.17504]
[1733591413802,5.8051981,3995.2,3995.1,0.17504]
[1733591414208,0.90032162,3995.2,3995.1,0.17504]
[1733591415408,5.79244831,3995.2,3995.1,0.17504]
[1733591415599,0.90032162,3995.2,3995.1,0.17504]
[1733591416815,0.90032162,3995.2,3995.0,0.17505]
[1733591417004,0.17505,3995.1,3995.0,0.17505]
[1733591417203,1.07536162,3995.2,3995.1,0.17504]
[1733591417506,1.07536162,3995.2,3994.3,1.33802162]
[1733591417507,0.90032162,3995.2,3994.3,1.33802162]
[1733591417810,3.91354263,3994.6,3994.5,0.17507]
[1733591418007,0.90032162,3994.7,3994.6,0.17507]
[1733591418206,6.20300312,3994.7,3994.6,0.17507]
[1733591418508,6.60550312,3994.7,3994.6,0.17507]
[1733591418707,1.71372162,3994.7,3994.6,0.17507]
[1733591418910,6.60601619,3994.7,3994.6,0.17507]
[1733591419205,1.71372162,3994.7,3994.6,0.17507]
[1733591419807,6.60577248,3994.7,3994.6,0.17507]
[1733591420202,4.89205086,3994.7,3994.6,0.17507]
[1733591420403,4.89205086,3994.8,3994.6,0.90032162]
[1733591420599,1.29592162,3995.3,3994.6,4.10812162]
[1733591420600,4.89205086,3994.9,3994.6,4.10812162]
[1733591420805,3.91425288,3994.8,3994.6,4.10812162]
[1733591421000,3.91425288,3994.8,3994.7,0.17506]
[1733591421204,4.89205086,3995.0,3994.9,0.17505]
[1733591421400,2.93577313,3995.2,3994.6,4.10812162]
[1733591421604,2.93577313,3995.2,3995.1,0.17504]
[1733591422117,3.33137313,3995.3,3995.0,3.2078]
[1733591422409,3.33137313,3995.3,3995.2,0.17504]
[1733591422708,2.93577313,3995.4,3995.3,0.17503]
[1733591422908,2.93577313,3995.6,3995.5,0.17503]
[1733591423316,2.93577313,3995.7,3995.6,0.17502]
[1733591423812,3.9143093,3996.0,3995.9,0.17501]
[1733591425006,3.9143093,3996.0,3995.7,0.17501]
[1733591425206,2.93414665,3995.8,3995.7,0.17502]
[1733591425412,2.93414665,3995.8,3995.4,3.2078]
[1733591425614,2.93414665,3995.8,3995.7,0.17502]
[1733591425811,4.0893193,3996.0,3995.7,0.17502]
[1733591426013,0.17501,3995.8,3995.5,0.17502]
[1733591426318,2.76248902,3996.1,3995.3,0.17503]
[1733591426319,0.17502,3995.6,3995.3,0.17503]
[1733591426614,3.9143093,3995.5,3995.3,0.17503]
[1733591426915,0.4082,3995.4,3995.3,0.17503]
[1733591427308,0.4082,3995.4,3995.0,3.2078]
[1733591427612,2.93384467,3995.3,3995.2,0.17503]
[1733591427815,0.58323,3995.4,3995.0,3.2078]
[1733591428114,2.93384939,3995.2,3995.1,0.17504]
[1733591428410,3.50458939,3995.3,3995.1,0.17504]
[1733591428616,0.17504,3995.2,3995.0,0.17504]
[1733591429115,0.17504,3995.2,3995.1,0.17504]
[1733591430615,0.3957,3995.3,3994.5,0.43767]
[1733591430813,0.57074,3995.3,3995.2,0.17504]
[1733591431006,0.17503,3995.3,3995.2,0.17504]
[1733591431214,0.4082,3995.4,3995.3,0.17503]
[1733591431215,0.17503,3995.4,3995.3,0.17503]
[1733591431409,0.56303,3995.4,3995.3,0.17503]
[1733591431810,0.56303,3995.4,3995.2,0.17504]
[1733591431811,0.17504,3995.3,3995.2,0.17504]
[1733591433123,0.17504,3995.2,3995.1,0.17504]
[1733591433422,0.388,3995.4,3994.6,0.43767]
[1733591433616,0.388,3995.4,3995.0,0.17505]
[1733591433617,0.4024,3995.1,3995.0,0.17505]
[1733591437026,0.56303,3995.4,3995.2,0.17503]
[1733591437728,3.38283,3995.5,3995.3,0.17503]
[1733591438317,3.2078,3995.5,3995.4,0.17503]
[1733591438522,3.38283,3995.5,3994.8,0.43765]
[1733591438723,3.38283,3995.5,3995.3,0.17503]
[1733591441132,3.38283,3995.5,3994.9,0.7936]
[1733591441133,3.38283,3995.5,3995.4,0.17503]
[1733591442529,3.38283,3995.5,3995.0,0.17505]
[1733591442831,0.17503,3995.5,3994.9,4.72296403]
[1733591443031,0.17503,3995.5,3995.3,0.17503]
[1733591443825,4.89282562,3995.5,3995.4,0.17503]
[1733591444030,5.06785562,3995.5,3995.4,0.17503]
[1733591444235,4.89282562,3995.5,3995.4,0.17503]
[1733591444735,4.89282562,3995.8,3995.4,8.2078]
[1733591444934,5.88609026,3996.4,3995.4,8.2078]
[1733591444935,2.42748459,3995.9,3995.8,0.17501]
[1733591445125,5.28892562,3996.4,3995.8,3.2078]
[1733591445333,5.28892562,3996.4,3996.3,0.17499]
[1733591445838,0.3961,3996.4,3996.3,0.17499]
[1733591447025,0.3961,3996.4,3995.8,3.2078]
[1733591447330,5.28892562,3996.4,3995.8,3.2078]
[1733591447535,0.175,3996.2,3996.0,0.175]
[1733591447732,5.06781562,3996.3,3996.0,0.175]
[1733591448039,0.393,3996.1,3996.0,0.175]
[1733591449440,5.28892562,3996.4,3996.3,0.17499]
[1733591449636,0.3961,3996.4,3996.3,0.17499]
[1733591450641,0.3961,3996.4,3995.9,0.6913]
[1733591450844,0.3961,3996.4,3996.2,0.17499]
[1733591451133,0.3961,3996.4,3995.8,3.2078]
[1733591451337,0.3961,3996.4,3996.3,0.17499]
[1733591451531,5.28892562,3996.4,3996.3,0.17499]
[1733591451731,0.3961,3996.4,3996.3,0.17499]
[1733591452831,0.3961,3996.4,3995.8,3.2078]
[1733591453037,0.3961,3996.4,3996.3,0.17499]
[1733591455039,0.3961,3996.4,3995.8,3.2078]
[1733591455345,0.17499,3996.3,3996.1,0.175]
[1733591455553,0.17499,3996.3,3996.2,0.175]
[1733591455845,0.57109,3996.4,3995.9,0.17501]
[1733591456144,0.3961,3996.4,3996.3,0.17499]
[1733591456536,0.57109,3996.4,3996.3,0.17499]
[1733591457042,0.3961,3996.4,3995.8,3.2078]
[1733591457342,0.17499,3996.3,3996.2,0.17499]
[1733591457733,0.175,3996.2,3996.1,0.175]
[1733591458249,0.175,3996.1,3996.0,0.175]
[1733591458440,0.374,3996.1,3995.6,1.908]
[1733591458631,0.17502,3995.8,3995.7,0.17501]
[1733591460441,3.2078,3996.0,3995.0,3.92936403]
[1733591460644,0.17502,3995.6,3995.5,0.17502]
[1733591461237,0.7625,3995.7,3994.9,0.87526]
[1733591461432,0.4062,3995.5,3994.9,0.87526]
[1733591461741,0.58123,3995.5,3995.4,0.17503]
[1733591462139,0.17504,3995.3,3995.2,0.17503]
[1733591462940,0.17504,3995.2,3995.1,0.17504]
[1733591463534,3.614,3995.5,3994.8,3.616]
[1733591463847,3.614,3995.5,3995.2,0.17504]
[1733591463848,0.17504,3995.3,3995.2,0.17504]
[1733591464438,0.17503,3995.4,3995.3,0.17503]
[1733591464845,0.17504,3995.3,3995.2,0.17504]
[1733591465841,0.17504,3995.3,3994.8,3.616]
[1733591465842,0.17503,3995.4,3995.3,0.17503]
[1733591466341,0.17503,3995.3,3995.2,0.17504]
[1733591466647,0.17503,3995.3,3995.1,0.17504]
[1733591467044,0.17503,3995.3,3995.2,0.17504]
[1733591467949,4.89282562,3995.6,3995.4,0.17503]
[1733591468148,0.17502,3995.6,3995.5,0.17502]
[1733591468346,0.93752,3995.7,3995.1,0.17504]
[1733591468542,0.93752,3995.7,3995.5,0.17502]
[1733591468848,0.7625,3995.7,3995.6,0.17502]
[1733591469359,4.89282562,3996.1,3995.9,0.17501]
[1733591469647,0.7568,3996.2,3996.1,0.175]
[1733591471151,0.17501,3996.0,3995.5,0.414]
[1733591471347,0.175,3996.1,3995.9,0.17501]
[1733591471648,5.64962562,3996.2,3995.5,0.414]
[1733591471848,0.175,3996.0,3995.5,0.414]
[1733591472037,5.64962562,3996.2,3995.8,0.17501]
[1733591472243,0.17501,3995.9,3995.8,0.17501]
[1733591472444,0.17501,3996.0,3995.5,0.414]
[1733591472655,5.64962562,3996.2,3995.8,0.17501]
[1733591472943,0.17501,3995.9,3995.8,0.17501]
[1733591473146,5.64962562,3996.2,3995.5,0.414]
[1733591473343,0.17501,3995.9,3995.8,0.17501]
[1733591473549,0.17501,3995.9,3995.5,0.414]
[1733591473550,0.17502,3995.8,3995.7,0.17501]
[1733591473753,5.64962562,3996.2,3995.5,0.414]
[1733591473946,0.17501,3996.0,3995.9,0.17501]
[1733591474142,0.17501,3995.9,3995.8,0.17501]
[1733591474847,0.7568,3996.2,3995.5,0.414]
[1733591475047,0.17501,3995.9,3995.8,0.17501]
[1733591475747,0.175,3996.1,3996.0,0.175]
[1733591476148,0.9318,3996.2,3996.1,0.175]
[1733591477338,0.17501,3995.9,3995.8,0.17501]
[1733591477544,0.17501,3996.0,3995.9,0.17501]
[1733591477947,0.175,3996.1,3996.0,0.175]
[1733591478245,0.175,3996.1,3995.5,0.85157]
[1733591478246,0.9318,3996.2,3996.1,0.175]
[1733591478549,0.9318,3996.2,3995.5,0.85157]
[1733591478752,0.7568,3996.2,3995.5,0.85157]
[1733591479054,0.17501,3995.9,3995.7,0.17501]
[1733591479251,0.7568,3996.2,3995.5,0.414]
[1733591479453,0.17501,3995.9,3995.8,0.17501]
[1733591479751,0.17501,3995.9,3995.6,0.17502]
[1733591480047,0.7568,3996.2,3995.5,0.414]
[1733591480048,3.9646,3996.2,3995.5,0.414]
[1733591480247,0.4057,3995.8,3995.6,0.17502]
[1733591480554,0.4057,3995.8,3995.5,0.414]
[1733591480751,0.4057,3995.8,3995.0,7.42746403]
[1733591480951,0.4057,3995.8,3995.7,0.17502]
[1733591482046,0.4057,3996.1,3996.0,0.175]
[1733591484156,0.89896704,3996.1,3995.8,0.17501]
[1733591484457,0.89896704,3996.1,3995.4,0.3971]
[1733591484458,6.29179026,3996.1,3995.9,0.17501]
[1733591484657,0.31828272,3996.0,3995.4,0.3971]
[1733591484954,4.89845688,3995.6,3995.5,0.17503]
[1733591485153,4.89845644,3995.6,3995.2,0.4005]
[1733591485358,3.91888019,3995.3,3995.2,0.57554]
[1733591485549,4.89858443,3995.4,3995.2,0.4005]
[1733591485750,4.89858443,3995.4,3995.3,0.17503]
[1733591488247,1.33193,3995.5,3995.3,0.17503]
[1733591488452,0.17503,3995.4,3995.2,0.17504]
[1733591488758,1.1569,3995.5,3995.1,1.908]
[1733591488956,1.1569,3995.5,3995.3,0.17503]
[1733591488957,0.17503,3995.4,3995.3,0.17503]
[1733591490158,1.1569,3995.5,3994.8,4.34446403]
[1733591490361,0.17504,3995.3,3995.2,0.17503]
[1733591491460,0.17504,3995.2,3995.1,0.17504]
[1733591493459,1.1569,3995.5,3994.8,0.43765]
[1733591493663,0.17504,3995.4,3995.3,0.17503]
[1733591494259,1.1569,3995.5,3994.8,3.92936403]
[1733591494566,1.33193,3995.5,3995.4,0.17503]
[1733591498166,1.33193,3995.5,3995.2,0.17504]
[1733591498167,0.17504,3995.3,3995.2,0.17504]
[1733591498360,5.0768872,3995.3,3995.2,0.17504]
[1733591499461,0.17504,3995.3,3995.2,0.17504]
[1733591499965,0.17505,3995.1,3995.0,0.17504]
[1733591500670,5.07743048,3995.1,3995.0,0.17504]
[1733591502166,4.90238048,3995.1,3994.6,3.2078]
[1733591502368,0.17505,3995.0,3994.9,0.17505]
[1733591502569,5.07743048,3995.0,3994.9,0.17505]
[1733591504165,3.2078,3995.3,3995.0,0.17505]
[1733591504166,0.17505,3995.1,3995.0,0.17505]
[1733591504967,1.07730767,3995.2,3995.1,0.17504]
[1733591505169,0.90226767,3995.2,3995.1,0.17504]
[1733591505475,1.07730767,3995.2,3995.1,0.17504]
[1733591513798,5.97807267,3995.2,3995.1,0.17504]
[1733591513994,1.07730767,3995.2,3995.1,0.17504]
[1733591514989,0.90226767,3995.2,3994.5,0.83748]
[1733591515186,2.94034536,3994.6,3994.5,0.57487]
[1733591516188,4.32696048,3994.8,3994.5,0.3998]
[1733591516389,4.32696048,3994.8,3994.6,0.17506]
[1733591516390,3.92046048,3994.7,3994.6,0.17506]
[1733591516693,0.58156,3994.8,3994.7,0.17506]
[1733591517094,0.4065,3994.8,3994.7,0.17506]
[1733591517901,5.3064081,3994.8,3994.7,0.17506]
[1733591518288,5.30610447,3994.8,3994.7,0.17506]
[1733591519299,0.4065,3994.8,3994.7,0.17506]
[1733591522387,3.2078,3994.9,3994.8,0.17506]
[1733591522793,3.38285,3994.9,3994.8,0.17506]
[1733591523799,3.2078,3994.9,3994.8,0.17506]
[1733591524497,3.38285,3994.9,3994.8,0.17506]
[1733591527299,4.28511767,3994.9,3994.8,0.17506]
[1733591527801,7.2247997,3994.9,3994.8,0.17506]
[1733591527995,4.28511767,3994.9,3994.8,0.17506]
[1733591528398,4.11006767,3994.9,3994.3,4.33976403]
[1733591528603,7.0497497,3994.9,3994.3,4.33976403]
[1733591528897,0.17507,3994.5,3994.4,0.17507]
[1733591529403,0.17508,3994.4,3994.3,0.17508]
[1733591530003,0.17508,3994.2,3994.1,0.56268]
[1733591530299,1.07734767,3994.2,3994.1,0.56268]
[1733591534193,4.99692372,3994.2,3994.1,0.56268]
[1733591535103,4.09464605,3994.4,3994.1,0.3876]
[1733591535397,0.17508,3994.3,3994.2,0.17508]
[1733591535596,3.91957605,3994.4,3994.2,0.17508]
[1733591535801,4.09465605,3994.4,3994.3,0.17508]
[1733591536197,0.17508,3994.3,3994.2,0.17508]
[1733591536394,0.17508,3994.3,3994.1,0.3876]
[1733591536395,0.17508,3994.2,3994.1,0.56269]
[1733591536797,4.82184372,3994.3,3993.7,0.90226767]
[1733591536999,6.32273032,3994.0,3993.9,0.17509]
[1733591537304,3.3829,3994.0,3993.9,0.17509]
[1733591537501,0.1751,3993.9,3993.8,0.5642]
[1733591537802,0.17511,3993.7,3993.6,0.1751]
[1733591538101,4.01652823,3993.7,3993.6,0.1751]
[1733591538505,3.84141823,3993.7,3993.6,0.1751]
[1733591538894,0.1751,3993.8,3993.3,3.2078]
[1733591538895,2.93915056,3993.8,3993.7,0.1751]
[1733591539411,2.93915056,3993.9,3993.6,0.90226767]
[1733591539612,2.93915056,3993.9,3993.8,0.1751]
[1733591541305,3.2078,3994.0,3993.9,0.1751]
[1733591545504,3.604,3994.0,3993.9,0.1751]
[1733591548116,4.68135767,3994.0,3993.9,0.1751]
[1733591548716,0.1751,3993.9,3993.8,0.1751]
[1733591548921,0.9486,3993.9,3993.8,0.1751]
[1733591549912,0.7735,3993.9,3993.8,0.1751]
[1733591550417,0.9486,3993.9,3993.8,0.1751]
[1733591552213,0.7735,3993.9,3993.8,0.1751]
[1733591553416,0.9486,3993.9,3993.8,0.1751]
[1733591554015,0.7735,3993.9,3993.8,0.1751]
[1733591554721,0.9486,3993.9,3993.8,0.1751]
[1733591556519,0.1751,3993.8,3993.7,0.1751]
[1733591557318,0.17511,3993.7,3993.6,0.1751]
[1733591557619,4.99338749,3993.7,3993.6,0.1751]
[1733591557922,1.07737767,3993.7,3993.6,0.1751]
[1733591558116,4.99337775,3993.7,3993.6,0.1751]
[1733591559425,4.81826775,3993.7,3993.6,0.1751]
[1733591559917,4.99336775,3993.7,3993.6,0.1751]
[1733591562321,1.07736767,3993.7,3993.6,0.1751]
[1733591562518,0.17512,3993.3,3993.2,0.17512]
[1733591562719,4.28518767,3993.3,3993.2,0.17512]
[1733591563022,8.02737717,3993.3,3993.2,0.17512]
[1733591563214,9.19917717,3993.3,3993.2,0.17512]
[1733591563413,5.28186767,3993.3,3993.2,0.17512]
[1733591563622,9.19899255,3993.3,3993.2,0.17512]
[1733591564530,5.28186767,3993.3,3993.2,0.17512]
[1733591567930,5.45698767,3993.3,3993.2,0.17512]
[1733591568121,2.07406767,3993.3,3993.2,0.17512]
[1733591568724,0.7738,3993.3,3993.2,0.17512]
[1733591569225,0.25038559,3993.9,3993.8,0.1751]
[1733591569425,1.02958559,3993.9,3993.8,0.1751]
[1733591570322,2.93738693,3994.2,3994.1,0.17509]
[1733591570524,3.45816992,3994.5,3994.4,0.17507]
[1733591570525,3.2078,3994.5,3994.4,0.17507]
[1733591570825,4.11006767,3994.5,3994.4,0.17507]
[1733591572018,9.00967214,3994.5,3994.4,0.17507]
[1733591573025,4.11006767,3994.5,3994.4,0.17507]
[1733591573231,9.00967214,3994.5,3994.4,0.17507]
[1733591575920,9.18474214,3994.5,3994.4,0.17507]
[1733591576232,9.00967214,3994.5,3994.4,0.17507]
[1733591577034,9.00967214,3994.5,3994.1,0.17508]
[1733591577035,0.17509,3994.2,3994.1,0.17508]
[1733591577227,0.1751,3994.0,3993.9,0.17509]
[1733591577430,4.09684012,3994.0,3993.9,0.17509]
[1733591577626,0.1751,3994.0,3993.9,0.17509]
[1733591577825,0.1751,3994.0,3993.5,3.2078]
[1733591577826,0.3816,3994.0,3993.5,3.2078]
[1733591578024,3.92148184,3993.8,3993.5,3.2078]
[1733591578222,3.84342326,3993.6,3993.5,0.17511]
[1733591578535,0.90226767,3993.6,3993.5,0.17511]
[1733591579628,3.84337938,3993.6,3993.5,0.17511]
[1733591580036,0.90226767,3993.6,3993.5,0.17511]
[1733591581045,2.94111171,3993.7,3993.6,0.17511]
[1733591581430,2.94111171,3993.7,3993.3,0.43781]
[1733591581620,2.94111171,3993.7,3993.6,0.17511]
[1733591582736,2.94250337,3993.7,3993.6,0.17511]
[1733591586029,5.20074951,3993.9,3993.4,0.3803]
[1733591586336,5.20074951,3993.9,3993.0,4.36720403]
[1733591586337,1.28126767,3993.6,3993.5,0.17511]
[1733591586640,1.45637767,3993.6,3993.5,0.17511]
[1733591589233,1.28126767,3993.6,3993.5,0.17511]
[1733591590138,0.90226767,3993.6,3993.5,0.17511]
[1733591590437,3.2078,3993.7,3993.6,0.17511]
[1733591591442,4.11006767,3993.7,3993.6,0.17511]
[1733591592840,0.90226767,3993.7,3993.6,0.17511]
[1733591603844,0.90226767,3993.7,3993.2,4.36718403]
[1733591603845,2.94098327,3993.8,3993.7,0.1751]
[1733591604937,0.377,3993.9,3993.8,0.1751]
[1733591604938,3.31798327,3993.9,3993.8,0.1751]
[1733591607954,4.22025094,3993.9,3993.8,0.1751]
[1733591608846,1.27926767,3993.9,3993.8,0.1751]
[1733591609555,1.45436767,3993.9,3993.8,0.1751]
[1733591609856,1.27926767,3993.9,3993.8,0.1751]
[1733591610452,1.45436767,3993.9,3993.8,0.1751]